bitfinex/quotes_ETHUSD_20250815
["timestamp","ask_amount","ask_price","bid_price","bid_amount"]
[1755274376447,4.109,4386.8,4385.3,1.8406]
[1755274376637,4.109,4386.8,4386.5,2.27970881]
[1755274377068,4.109,4386.8,4386.4,2.27976761]
[1755274377250,4.109,4386.8,4385.7,2.2767]
[1755274377546,4.109,4386.8,4386.2,2.27983538]
[1755274377964,6.38857623,4386.8,4385.7,0.001]
[1755274378269,6.38857727,4386.8,4385.7,2.28113462]
[1755274378457,4.109,4386.8,4386.1,2.27992807]
[1755274378778,4.109,4386.8,4385.7,0.001]
[1755274378779,2.27995026,4386.1,4385.7,0.001]
[1755274378939,4.108,4386.0,4385.7,0.001]
[1755274379272,2.28008573,4385.8,4385.7,0.001]
[1755274379468,2.28008573,4385.8,4384.0,0.4351]
[1755274379469,13.71428278,4384.2,4384.1,2.28096986]
[1755274379642,14.84081589,4384.2,4384.1,2.28096986]
[1755274380036,14.84081589,4384.2,4384.1,2.71606986]
[1755274380333,14.84081589,4384.2,4384.0,2.28102189]
[1755274380539,14.84081589,4384.2,4384.1,0.4351]
[1755274381280,13.71428278,4384.2,4383.9,4.30470565]
[1755274381639,4.108,4384.1,4383.9,4.30470565]
[1755274382174,4.108,4384.1,4384.0,0.1144]
[1755274382371,4.108,4384.1,4383.9,4.30470565]
[1755274382585,13.71428278,4384.2,4384.0,0.1144]
[1755274382732,4.108,4384.1,4384.0,0.1144]
[1755274383437,13.71428278,4384.2,4384.0,0.1144]
[1755274383640,17.82228278,4384.2,4384.0,0.1144]
[1755274384678,18.27918278,4384.2,4384.0,0.1144]
[1755274384859,4.08616986,4384.1,4384.0,0.1144]
[1755274385035,4.54124466,4384.1,4384.0,0.1144]
[1755274385237,2.2621,4384.1,4384.0,0.1144]
[1755274385874,2.2621,4384.1,4383.9,4.30470565]
[1755274386076,4.54312189,4384.0,4383.9,4.30470565]
[1755274386669,4.54312189,4384.0,4382.5,0.005]
[1755274386670,2.2621,4384.0,4382.5,0.005]
[1755274386976,2.18141376,4382.6,4382.5,0.005]
[1755274387178,6.28941376,4382.6,4382.5,0.005]
[1755274387376,8.62385055,4382.6,4382.5,0.005]
[1755274387546,6.3421,4382.6,4382.5,0.005]
[1755274387742,4.108,4382.6,4382.5,0.005]
[1755274388254,5.478,4383.4,4382.5,0.005]
[1755274388454,4.108,4383.3,4382.6,2.2817244]
[1755274388657,5.9114,4383.3,4382.5,0.005]
[1755274389175,5.9087,4383.4,4382.5,0.005]
[1755274389176,4.108,4383.2,4382.5,0.005]
[1755274389479,4.108,4383.2,4383.0,2.28152259]
[1755274389675,4.108,4383.2,4382.5,0.005]
[1755274389879,1.8034,4384.5,4382.5,0.005]
[1755274390191,5.479,4385.0,4383.6,2.28118267]
[1755274390354,4.107,4384.9,4383.7,0.4697]
[1755274390542,0.17405307,4385.3,4383.7,0.4697]
[1755274390543,1.8034,4386.0,4383.7,0.4697]
[1755274390743,4.107,4385.9,4385.8,2.28008573]
[1755274390966,0.13,4386.6,4385.2,2.2803977]
[1755274391180,0.13,4386.6,4385.3,0.49250345]
[1755274391364,4.108,4386.5,4385.7,2.28010313]
[1755274391669,4.108,4386.5,4385.5,2.28023404]
[1755274391873,4.108,4386.5,4384.4,2.2807677]
[1755274392055,3.0,4386.2,4382.5,0.4747]
[1755274392255,3.0,4386.2,4382.5,0.005]
[1755274392256,2.28117327,4383.8,4382.5,0.005]
[1755274392469,5.9104,4383.7,4382.5,0.005]
[1755274393065,5.9104,4383.7,4383.3,2.28138557]
[1755274393276,4.107,4383.7,4383.4,2.28132531]
[1755274393474,4.107,4383.7,4382.5,0.005]
[1755274393690,1.8034,4384.4,4382.5,0.005]
[1755274393898,1.8034,4384.4,4382.7,2.28169849]
[1755274394193,4.107,4384.3,4383.4,2.28132826]
[1755274394420,2.28092687,4384.2,4383.1,2.28144315]
[1755274394581,6.38787194,4384.3,4383.3,2.28138393]
[1755274394903,2.70519318,4384.2,4382.5,0.005]
[1755274395067,2.28168468,4382.8,4382.5,0.005]
[1755274395266,6.38870104,4382.7,4382.5,0.005]
[1755274395495,5.9104,4382.7,4382.5,0.005]
[1755274395815,0.58881897,4384.0,4382.5,0.005]
[1755274395964,4.107,4383.9,4382.5,0.4747]
[1755274396166,6.38808101,4383.9,4382.6,2.28173525]
[1755274396385,0.1144,4383.5,4382.9,0.1144]
[1755274396913,4.106,4383.4,4383.3,0.1144]
[1755274397193,4.107,4383.4,4383.3,0.1144]
[1755274397760,4.107,4383.4,4383.3,2.39578617]
[1755274398158,4.107,4383.4,4383.3,0.1144]
[1755274398392,8.62243412,4383.4,4382.5,0.005]
[1755274398559,6.3411,4383.4,4382.8,0.1144]
[1755274398762,0.47206245,4383.3,4382.8,0.1144]
[1755274399063,0.1144,4383.1,4382.5,0.1194]
[1755274399265,4.106,4383.0,4382.5,0.005]
[1755274399491,6.38760984,4382.9,4382.5,0.005]
[1755274399797,0.47206245,4382.8,4382.5,0.1194]
[1755274399982,4.106,4382.7,4382.5,0.1194]
[1755274400194,0.09185077,4382.9,4382.5,0.1194]
[1755274400388,4.106,4382.8,4382.5,0.1194]
[1755274400573,4.106,4382.8,4382.7,2.28169849]
[1755274400983,4.106,4382.8,4382.5,2.4011951]
[1755274400984,4.106,4382.8,4382.5,0.1194]
[1755274401191,1.8034,4382.7,4382.5,0.1194]
[1755274401806,2.2751493,4382.7,4382.5,0.1194]
[1755274402110,1.8034,4382.6,4382.5,0.1194]
[1755274402315,0.9024493,4382.7,4382.5,0.1194]
[1755274402316,0.4717493,4382.7,4382.5,0.005]
[1755274402621,2.7058493,4382.6,4382.5,0.005]
[1755274402783,4.105,4382.6,4382.5,0.005]
[1755274402983,0.4717493,4382.8,4382.7,2.28169849]
[1755274403211,0.09233729,4382.9,4382.7,2.28169849]
[1755274403212,0.09233729,4382.9,4382.8,2.28164643]
[1755274403414,4.106,4383.4,4382.9,2.28159437]
[1755274403580,4.106,4383.4,4383.3,2.39578617]
[1755274404168,4.1990533,4383.4,4383.3,2.39578617]
[1755274404600,0.0930533,4383.4,4383.3,2.39578617]
[1755274404800,4.5767493,4384.3,4383.7,2.28114811]
[1755274405011,4.105,4384.3,4384.2,2.28091784]
[1755274405307,4.57854185,4384.6,4384.5,2.28076177]
[1755274405535,4.57854185,4384.6,4384.5,0.1144]
[1755274405814,7.02113034,4384.6,4383.6,2.28123003]
[1755274406016,0.59189671,4383.9,4383.5,0.1144]
[1755274406220,5.17043856,4383.8,4383.5,0.1144]
[1755274406376,1.06543856,4383.7,4383.5,0.1144]
[1755274406571,0.47354185,4383.6,4383.5,2.39568208]
[1755274407207,4.104,4384.2,4384.1,2.28096986]
[1755274407405,4.57838877,4384.2,4384.1,2.39536986]
[1755274408616,6.81248877,4384.2,4382.6,0.001]
[1755274408779,0.59397253,4383.6,4382.6,0.001]
[1755274408981,0.002,4383.4,4382.6,0.001]
[1755274409208,4.57738877,4383.3,4383.2,2.28143821]
[1755274409451,0.47438877,4383.3,4383.2,2.75113821]
[1755274409679,0.59597253,4383.4,4383.3,2.28138617]
[1755274409680,0.002,4383.4,4383.3,2.28138617]
[1755274409874,0.59397253,4384.0,4383.9,2.28107392]
[1755274410079,4.103,4384.2,4384.0,2.28102189]
[1755274410080,0.59397253,4384.1,4384.0,2.28102189]
[1755274410302,4.69697253,4384.2,4384.1,2.28096986]
[1755274410488,0.002,4384.3,4384.1,2.28096986]
[1755274410489,0.002,4384.3,4384.2,2.28091784]
[1755274410705,0.002,4384.3,4384.2,4.38251784]
[1755274410911,1.1294526,4385.2,4384.2,4.38251784]
[1755274411219,1.11321237,4385.4,4383.7,2.28112681]
[1755274411394,1.1294526,4385.2,4384.8,2.28059229]
[1755274411593,1.14740753,4385.2,4383.6,4.103]
[1755274411782,1.14740753,4385.2,4385.1,2.2804497]
[1755274411984,5.24940753,4385.2,4382.8,0.4697]
[1755274412184,0.78919562,4384.8,4382.9,1.6319]
[1755274412409,4.89119562,4384.7,4382.9,1.6319]
[1755274412716,0.78919562,4385.0,4384.9,2.28055371]
[1755274412921,1.12495907,4385.4,4384.9,0.4697]
[1755274413282,1.12495907,4385.4,4385.3,8.8e-07]
[1755274413484,1.03713207,4385.5,4384.9,2.28055371]
[1755274413686,1.03713207,4385.5,4385.4,2.2802937]
[1755274413914,5.13913207,4385.5,4383.6,2.28121777]
[1755274414219,8.16242769,4385.5,4383.4,0.4697]
[1755274414429,0.78919562,4385.3,4382.6,0.001]
[1755274414600,3.05975916,4384.9,4384.0,2.28099481]
[1755274414796,4.101,4384.8,4383.9,2.28104112]
[1755274415009,1.8034,4384.7,4383.9,2.28102967]
[1755274415332,1.8034,4384.7,4384.0,2.28097545]
[1755274415619,1.7934,4384.7,4384.0,2.28097545]
[1755274415834,1.7934,4384.7,4384.1,2.2809651]
[1755274416029,1.7934,4384.7,4382.7,2.75139849]
[1755274416236,4.07405801,4384.7,4383.8,2.28108208]
[1755274416444,2.28082638,4384.4,4382.5,0.005]
[1755274416610,2.28076177,4384.5,4383.4,2.2812885]
[1755274416813,5.28479343,4384.8,4383.2,2.28139265]
[1755274417136,2.28103034,4384.0,4383.2,2.28139265]
[1755274417335,4.1,4383.9,4382.6,0.001]
[1755274417497,0.4685,4384.4,4382.6,0.001]
[1755274417696,4.94614983,4385.8,4382.6,0.001]
[1755274417697,1.9082,4385.3,4383.8,2.28109223]
[1755274417940,1.9082,4385.3,4384.6,2.28070971]
[1755274418100,1.9082,4385.3,4383.6,2.28121568]
[1755274418449,1.8982,4385.3,4384.5,2.28072763]
[1755274418735,1.8982,4385.3,4383.5,4.5541]
[1755274418934,4.17854608,4385.3,4384.5,2.28072409]
[1755274419153,4.1,4385.4,4385.2,0.1144]
[1755274419313,4.1,4385.4,4384.7,2.28060966]
[1755274419635,4.1,4385.4,4384.0,0.4541]
[1755274419636,4.1,4385.4,4385.3,0.1144]
[1755274420131,4.099,4386.0,4385.3,0.1144]
[1755274420344,4.099,4386.0,4385.3,2.39473671]
[1755274420562,4.099,4386.0,4385.3,0.1144]
[1755274420694,4.5675,4385.4,4385.3,0.1144]
[1755274421010,4.5675,4385.4,4382.9,2.28157982]
[1755274421011,2.2803457,4385.3,4384.5,0.1144]
[1755274421333,2.28050672,4385.0,4384.5,0.1144]
[1755274421531,2.2804497,4385.1,4382.9,0.4541]
[1755274421704,1.9082,4385.3,4384.3,0.1144]
[1755274421705,2.0226,4384.9,4384.3,0.1144]
[1755274421910,4.57412621,4384.8,4384.3,0.1144]
[1755274422098,4.57412621,4384.7,4384.3,0.1144]
[1755274422298,0.47612621,4384.6,4384.3,0.1144]
[1755274422534,2.85282621,4384.5,4384.3,0.1144]
[1755274422739,2.85282621,4384.4,4384.3,0.1144]
[1755274423036,2.28089453,4384.3,4384.1,0.1144]
[1755274423348,0.47612621,4384.2,4384.1,0.1144]
[1755274423552,6.95082621,4384.2,4384.1,0.1144]
[1755274423711,9.23174405,4384.2,4384.1,0.1144]
[1755274423912,2.28106958,4384.0,4383.8,0.1144]
[1755274424116,2.28133412,4383.4,4383.3,0.001]
[1755274424316,2.28133412,4383.4,4382.8,0.001]
[1755274424317,2.28159437,4382.9,4382.8,0.001]
[1755274424652,6.85581992,4382.9,4382.8,0.001]
[1755274424815,9.23251992,4382.9,4382.8,0.001]
[1755274425144,9.34691992,4382.9,4382.8,0.001]
[1755274426048,9.34591992,4382.9,4382.8,0.001]
[1755274426406,6.94992555,4382.9,4382.8,0.001]
[1755274426706,4.57322555,4382.9,4382.8,0.001]
[1755274426953,0.47622555,4383.5,4382.9,2.28159437]
[1755274427100,4.097,4383.4,4383.2,0.1144]
[1755274427300,4.097,4383.3,4383.2,0.1144]
[1755274427501,6.4737,4383.3,4382.8,0.001]
[1755274427714,0.47612541,4383.2,4382.8,0.1154]
[1755274427898,0.47612541,4383.2,4382.8,0.001]
[1755274427899,4.65819026,4383.1,4382.8,0.001]
[1755274428102,2.39599437,4382.9,4382.8,0.001]
[1755274428304,6.49299437,4382.9,4382.8,0.001]
[1755274428548,9.34581978,4382.9,4382.8,0.001]
[1755274429254,7.06422541,4382.9,4382.8,0.001]
[1755274429603,4.68752541,4382.9,4382.8,0.001]
[1755274429803,7.06422541,4382.9,4382.8,0.001]
[1755274430120,6.4737,4382.9,4382.8,0.001]
[1755274430341,4.097,4382.9,4382.8,0.001]
[1755274430927,2.45530505,4383.9,4382.8,0.001]
[1755274430928,2.3767,4384.3,4382.8,0.001]
[1755274431148,4.2104,4384.2,4383.6,0.1144]
[1755274431366,4.68708225,4384.2,4383.6,0.1144]
[1755274431568,4.096,4384.2,4384.1,2.28096986]
[1755274431733,4.096,4384.2,4384.0,0.1144]
[1755274432263,2.3767,4384.1,4383.1,2.28148495]
[1755274432429,4.096,4384.2,4383.7,0.1144]
[1755274432630,2.3767,4384.1,4383.7,0.1144]
[1755274432837,2.281178,4383.7,4382.8,0.001]
[1755274433069,0.1144,4383.1,4382.8,0.001]
[1755274433244,4.095,4383.0,4382.8,0.001]
[1755274433427,0.1144,4383.1,4382.8,0.001]
[1755274433627,4.095,4383.0,4382.8,0.001]
[1755274434083,4.095,4383.0,4382.9,2.28159437]
[1755274434881,0.4685,4384.0,4382.9,2.28159437]
[1755274434882,4.095,4384.0,4383.1,2.28149026]
[1755274435048,4.095,4384.0,4382.9,2.1487]
[1755274435049,4.095,4384.0,4383.9,2.28107392]
[1755274435237,4.095,4384.0,4382.8,0.001]
[1755274435437,6.0032,4384.0,4382.8,0.001]
[1755274435638,6.0032,4384.0,4382.9,2.28159437]
[1755274435932,6.0032,4384.0,4382.8,0.001]
[1755274436157,0.4685,4383.9,4382.8,0.001]
[1755274436356,0.098259,4384.5,4383.8,2.28112596]
[1755274436559,4.094,4384.4,4383.5,2.28127793]
[1755274436885,4.094,4384.4,4383.0,2.28154232]
[1755274437032,4.094,4384.4,4383.8,2.28108034]
[1755274437233,4.094,4384.4,4383.7,2.28114729]
[1755274437535,4.094,4384.4,4384.0,2.28101952]
[1755274438208,4.094,4384.4,4382.9,0.4541]
[1755274438352,4.094,4384.4,4384.0,2.28097926]
[1755274438543,4.094,4384.4,4382.9,0.4541]
[1755274438544,0.002,4384.4,4383.0,2.28154232]
[1755274438763,0.002,4384.4,4384.3,2.28086581]
[1755274438970,0.002,4384.4,4383.1,0.4541]
[1755274439172,2.3767,4384.3,4382.7,2.28169249]
[1755274439397,1.9082,4384.3,4382.9,2.28159437]
[1755274439681,4.093,4384.2,4383.6,2.28118257]
[1755274439884,4.093,4384.2,4383.7,2.28115902]
[1755274440091,4.093,4384.2,4382.8,2.28263946]
[1755274440092,4.093,4384.2,4382.8,0.001]
[1755274440391,4.65768928,4384.1,4383.3,2.28137706]
[1755274440793,2.3767,4384.1,4382.8,0.001]
[1755274441087,2.3767,4384.1,4383.5,2.28123028]
[1755274441450,2.3767,4384.1,4383.7,2.2811779]
[1755274441654,2.3767,4384.0,4382.8,0.001]
[1755274441888,4.093,4384.2,4382.8,0.001]
[1755274442171,4.093,4384.2,4383.9,2.2810697]
[1755274442339,4.093,4384.2,4382.8,2.73672514]
[1755274442538,4.093,4384.2,4383.8,2.28108179]
[1755274442760,4.093,4384.2,4382.8,0.4551]
[1755274442961,4.093,4384.2,4383.0,2.28154232]
[1755274446044,0.002,4388.1,4388.0,2.39254257]
[1755274446244,1e-08,4389.4,4388.4,2.27870711]
[1755274446492,1e-08,4389.4,4388.8,2.27849988]
[1755274446686,1e-08,4389.5,4389.3,2.3918676]
[1755274446891,1e-08,4389.5,4389.4,2.2782157]
[1755274447045,0.002,4390.4,4389.4,2.2782157]
[1755274447046,0.002,4390.4,4389.4,2.12568215]
[1755274447381,1e-08,4390.4,4390.3,2.39134867]
[1755274447543,0.002,4391.7,4390.3,0.02277748]
[1755274447744,0.002,4391.7,4391.6,2.39067441]
[1755274447986,0.002,4391.7,4391.6,0.1136]
[1755274448199,0.002,4391.7,4391.6,2.39067441]
[1755274449178,0.002,4391.7,4391.6,0.1136]
[1755274449553,0.002,4392.2,4392.1,2.27681519]
[1755274449906,0.002,4392.6,4392.5,2.27660785]
[1755274450064,0.002,4392.6,4392.5,2.39020785]
[1755274450262,0.002,4393.1,4393.0,2.27634873]
[1755274450467,0.09513168,4394.5,4394.3,2.2756753]
[1755274450696,0.09513168,4394.5,4393.2,1.6587]
[1755274450863,2.3536,4395.3,4394.3,0.1136]
[1755274451066,0.02066242,4395.7,4394.3,2.2756753]
[1755274451308,0.02066242,4395.7,4394.6,2.27550076]
[1755274451463,0.02066242,4395.7,4394.9,2.27534755]
[1755274451668,0.02066242,4395.7,4393.4,0.55]
[1755274451869,0.02066242,4395.7,4393.1,2.27627564]
[1755274452220,0.02066242,4395.7,4391.7,18.13164514]
[1755274452221,1.9017,4395.6,4393.4,2.27614148]
[1755274452509,0.02066242,4395.7,4394.9,2.27534672]
[1755274452660,0.02066242,4395.7,4393.4,5.72030395]
[1755274452867,0.02066242,4395.7,4394.9,2.2753463]
[1755274453304,0.02066242,4395.7,4395.1,2.27526108]
[1755274453503,1e-08,4395.2,4395.1,2.27526108]
[1755274453709,1e-08,4395.7,4395.6,2.27500227]
[1755274453875,1.9017,4395.6,4392.2,5.472]
[1755274454075,2.3536,4395.6,4393.1,3.0]
[1755274454327,1.9017,4395.6,4391.4,2.27716366]
[1755274454534,0.4519,4395.5,4392.6,4.08]
[1755274454709,1.9017,4395.4,4392.9,4.08]
[1755274454906,0.4519,4395.3,4393.0,4.08]
[1755274455120,0.4519,4395.3,4393.4,2.27614148]
[1755274455411,1e-08,4395.7,4393.7,2.27598607]
[1755274455611,1e-08,4395.7,4393.5,2.11866089]
[1755274455612,4.17670227,4395.6,4393.8,4.079]
[1755274455911,1e-08,4395.7,4394.8,2.27541557]
[1755274456111,1e-08,4395.7,4393.9,4.5232]
[1755274456283,1e-08,4395.7,4395.2,2.27516852]
[1755274456481,1e-08,4395.7,4395.0,2.27530964]
[1755274456482,2.35360001,4395.7,4395.0,2.27530964]
[1755274456678,1e-08,4395.7,4394.4,2.27562352]
[1755274456920,1e-08,4395.7,4395.6,2.27500227]
[1755274457274,0.4519,4395.7,4393.8,0.4442]
[1755274457483,0.4519,4395.7,4393.9,0.57275882]
[1755274457703,0.4519,4396.5,4394.9,2.27536462]
[1755274458013,4.077,4397.6,4395.4,2.27507114]
[1755274458014,0.4519,4396.4,4395.4,2.27507114]
[1755274458213,3.0,4396.2,4392.7,0.4442]
[1755274458387,0.55,4395.9,4392.3,4.077]
[1755274458588,3.0,4396.0,4393.5,0.683743]
[1755274458589,0.4519,4395.8,4393.5,0.683743]
[1755274458796,2.27500227,4395.6,4393.5,0.683743]
[1755274459003,0.4519,4395.5,4392.5,2.27660785]
[1755274459328,1.9017,4395.4,4393.5,0.683756]
[1755274459481,2.27545964,4394.8,4393.8,2.27592807]
[1755274459675,1.9017,4395.4,4392.2,2.27674308]
[1755274459676,2.27557343,4394.5,4392.2,2.27674308]
[1755274459996,1.9017,4394.4,4393.9,2.27584749]
[1755274460187,3.002,4395.7,4394.9,2.27531491]
[1755274460188,0.002,4395.7,4394.9,2.27531491]
[1755274460515,0.002,4395.7,4393.5,0.4442]
[1755274460516,0.002,4395.7,4393.7,2.27598607]
[1755274460714,0.002,4395.7,4393.8,2.29869361]
[1755274460915,0.002,4395.7,4395.3,2.27515543]
[1755274461116,0.002,4395.7,4395.4,0.1136]
[1755274461339,2.3536,4395.6,4395.4,0.1136]
[1755274461484,2.3536,4395.5,4395.0,0.1136]
[1755274461683,2.3536,4395.5,4395.3,0.1136]
[1755274462133,1.9017,4395.5,4395.3,0.1136]
[1755274462284,0.002,4395.7,4395.4,0.1136]
[1755274462489,0.002,4395.7,4395.6,2.27500227]
[1755274462722,1e-08,4396.2,4395.6,2.27500227]
[1755274462939,1e-08,4396.2,4396.1,2.27474352]
[1755274463419,1e-08,4396.2,4396.1,4.42064352]
[1755274463597,1e-08,4396.2,4396.1,7.97064352]
[1755274463802,1e-08,4396.2,4396.1,7.42064352]
[1755274463999,1e-08,4396.2,4396.1,11.49464352]
[1755274464198,1e-08,4396.2,4396.1,12.04464352]
[1755274464395,1e-08,4396.2,4396.1,7.97064352]
[1755274464624,1e-08,4396.2,4396.1,2.27474352]
[1755274464828,1e-08,4396.2,4396.1,4.99339095]
[1755274465131,0.4519,4399.5,4396.4,0.55]
[1755274465417,0.4519,4399.5,4397.3,3.0]
[1755274465581,0.4519,4399.5,4397.4,0.4442]
[1755274465785,0.4519,4399.5,4397.4,0.46694071]
[1755274465984,4.17473723,4399.4,4397.5,4.073]
[1755274466222,2.3536,4399.3,4397.1,5.466]
[1755274466521,2.27324391,4399.0,4397.8,2.27383034]
[1755274466719,2.27352439,4398.5,4397.1,5.466]
[1755274466918,2.27334727,4398.8,4397.1,5.466]
[1755274467218,1.9017,4398.8,4398.0,2.27374161]
[1755274467421,1.9017,4398.8,4397.1,5.466]
[1755274467650,2.27383475,4397.9,4396.9,2.27431658]
[1755274467788,2.3536,4397.9,4395.7,0.4442]
[1755274468299,0.4519,4397.8,4395.9,2.27484701]
[1755274468498,2.27350311,4398.5,4397.5,2.27398548]
[1755274468743,2.3536,4399.4,4397.7,2.27391591]
[1755274468902,2.3536,4399.4,4397.3,0.4442]
[1755274469105,0.002,4397.8,4397.4,6.34507104]
[1755274469335,0.002,4397.8,4397.7,2.27391591]
[1755274470238,0.4519,4399.3,4397.7,2.97969506]
[1755274470410,0.4519,4399.3,4398.8,2.27333337]
[1755274470611,2.3536,4399.2,4397.7,7.02792223]
[1755274470927,0.4519,4399.8,4399.1,2.27319224]
[1755274471127,0.4519,4399.8,4397.7,5.19824]
[1755274471512,0.4519,4399.8,4399.3,2.2730631]
[1755274471836,2.27263274,4400.2,4399.3,2.27308674]
[1755274471837,2.3536,4399.7,4399.3,2.27308674]
[1755274472054,0.4659678,4400.1,4398.5,4.071]
[1755274472340,0.002,4400.5,4398.7,2.27339895]
[1755274472537,0.002,4400.5,4400.4,2.38612067]
[1755274473333,0.002,4400.5,4400.4,0.1136]
[1755274473503,1.9037,4400.5,4400.4,0.1136]
[1755274473703,2.8215678,4400.5,4399.6,0.465968]
[1755274473917,0.4659678,4400.4,4400.2,0.1136]
[1755274474243,0.5795678,4400.3,4399.7,0.1136]
[1755274474540,0.002,4400.5,4398.1,4.069]
[1755274474541,0.002,4400.5,4400.2,2.27262397]
[1755274474744,0.002,4400.5,4400.4,2.27252067]
[1755274475518,0.002,4400.5,4398.4,2.27354078]
[1755274475519,2.3556,4400.5,4398.4,2.27354078]
[1755274475704,2.3536,4400.4,4400.2,2.27261175]
[1755274475917,2.3536,4400.3,4398.6,4.068]
[1755274476112,0.002,4400.1,4398.6,4.068]
[1755274476316,0.002,4400.1,4398.9,2.27328484]
[1755274476617,0.002,4400.1,4399.2,2.27314057]
[1755274476965,0.002,4400.1,4398.0,2.27374992]
[1755274476966,0.78723114,4400.1,4399.7,2.27285162]
[1755274477175,3.10303114,4400.0,4399.0,0.682897]
[1755274477462,0.002,4400.1,4399.0,0.682897]
[1755274477676,0.002,4400.1,4400.0,2.27272727]
[1755274478365,3.10503114,4400.1,4399.0,0.682897]
[1755274478522,0.78523114,4400.0,4398.4,2.27355401]
[1755274478713,1.8799,4399.9,4399.1,2.27318168]
[1755274478930,2.3178,4399.9,4398.4,2.27355401]
[1755274479150,2.66513114,4399.9,4399.6,2.27291292]
[1755274479355,2.3178,4399.8,4398.2,0.682905]
[1755274479538,0.79086813,4399.2,4398.2,0.682905]
[1755274479746,2.27360571,4398.3,4398.2,0.682905]
[1755274479917,2.3178,4398.3,4397.2,2.27412891]
[1755274480117,2.3178,4398.3,4395.6,1.7027]
[1755274480118,0.79073738,4397.7,4397.1,2.27422556]
[1755274480328,2.3178,4397.6,4395.7,2.27495051]
[1755274480533,0.79073738,4397.3,4395.6,0.001]
[1755274480743,0.79073738,4397.2,4395.6,0.001]
[1755274480920,0.79073738,4397.2,4395.9,2.27480746]
[1755274481130,0.79073738,4397.2,4395.7,0.683332]
[1755274481353,0.79073738,4397.2,4397.1,2.27422619]
[1755274481518,7.59157319,4398.0,4395.8,0.4316]
[1755274481519,0.79073738,4397.3,4395.8,0.4316]
[1755274481719,0.79073738,4397.3,4396.9,2.27431816]
[1755274481948,5.3178,4398.0,4395.7,0.683332]
[1755274481949,3.10853738,4397.2,4395.7,0.683332]
[1755274482319,0.79073738,4396.9,4395.7,0.683332]
[1755274482520,0.79073738,4396.7,4395.7,0.683332]
[1755274482728,0.79073738,4396.7,4395.6,0.001]
[1755274482729,2.67063738,4396.6,4396.0,2.27478642]
[1755274482970,0.79073738,4396.5,4395.6,0.001]
[1755274483173,0.79073738,4396.5,4395.8,2.27485556]
[1755274483334,0.79073738,4396.5,4395.6,0.001]
[1755274483520,0.79073738,4396.2,4395.6,2.2759992]
[1755274483720,0.79073738,4396.3,4395.9,2.27484368]
[1755274483933,2.3178,4396.2,4395.6,0.001]
[1755274484334,0.79073738,4396.1,4395.6,0.001]
[1755274484591,1.29985928,4395.8,4395.6,0.001]
[1755274484759,2.27495051,4395.7,4395.6,0.001]
[1755274485159,4.59275051,4395.7,4395.6,0.001]
[1755274485463,2.3178,4395.7,4395.1,0.1146]
[1755274485666,0.79163176,4395.3,4395.1,2.27625149]
[1755274485864,0.79163176,4395.5,4395.4,2.38870579]
[1755274486074,0.79163176,4395.9,4395.6,2.27500227]
[1755274486419,0.79163176,4395.9,4395.8,2.38849876]
[1755274486624,1.26654312,4395.9,4395.8,0.1136]
[1755274486856,0.91281136,4395.9,4395.8,0.1136]
[1755274487021,7.65122732,4395.9,4395.1,0.001]
[1755274487237,0.79127416,4395.4,4395.1,0.1146]
[1755274487434,1.26618552,4395.3,4395.1,0.1146]
[1755274487673,2.75012067,4395.2,4395.1,0.001]
[1755274487825,2.79271136,4395.2,4395.1,0.001]
[1755274488027,2.90631136,4395.2,4395.1,0.001]
[1755274488259,1.66247552,4395.2,4395.1,0.001]
[1755274488639,5.06792067,4395.2,4395.1,0.001]
[1755274488839,8.73152067,4395.2,4395.1,0.001]
[1755274489222,2.27531285,4395.0,4394.9,0.001]
[1755274489577,5.75022421,4395.0,4394.9,0.001]
[1755274489869,8.06802421,4395.0,4394.9,0.001]
[1755274490077,5.79271136,4395.0,4394.9,0.001]
[1755274490273,8.06802421,4395.0,4394.9,0.001]
[1755274490560,0.47491136,4395.0,4394.9,0.001]
[1755274490767,0.47491136,4395.0,4394.9,2.27636462]
[1755274491742,0.79304224,4395.9,4395.8,2.27489876]
[1755274491939,0.47569235,4395.9,4395.8,4.49269876]
[1755274492166,0.79304224,4397.4,4397.3,2.27410328]
[1755274492438,0.79304224,4397.5,4397.3,2.27410328]
[1755274492656,0.79304224,4397.5,4397.4,2.27407104]
[1755274492854,0.79304224,4397.5,4395.9,6.34184701]
[1755274493089,0.7933126,4397.6,4397.0,2.27423233]
[1755274493257,0.7933126,4397.5,4397.0,2.27423233]
[1755274493582,0.7933126,4397.5,4397.1,2.27420534]
[1755274493784,0.7933126,4397.6,4397.1,2.27420534]
[1755274493983,0.7933126,4397.6,4397.0,2.27427286]
[1755274494195,0.7933126,4397.6,4395.8,2.2178]
[1755274494196,0.7933126,4397.6,4397.3,2.27410378]
[1755274494352,0.7933126,4397.6,4396.6,2.27448482]
[1755274494539,0.7933126,4398.0,4397.7,2.27391187]
[1755274494872,0.7933126,4398.2,4397.9,2.2738125]
[1755274495071,2.3178,4398.1,4397.4,2.27404023]
[1755274495372,2.3178,4398.1,4396.3,0.4316]
[1755274495373,3.1111126,4398.1,4396.3,0.4316]
[1755274495571,3.1111126,4398.1,4397.1,2.27421542]
[1755274495572,0.7933126,4397.9,4397.1,2.27421542]
[1755274495771,0.7933126,4397.9,4396.0,2.27479526]
[1755274496372,2.2738642,4397.8,4396.0,2.27479526]
[1755274496563,2.2738642,4397.8,4396.8,2.27433612]
[1755274496564,1.2312126,4397.7,4396.8,2.27433612]
[1755274496741,4.066,4397.6,4396.8,2.27433612]
[1755274496936,4.066,4397.6,4395.7,2.901121]
[1755274497273,4.066,4397.6,4395.9,2.27484701]
[1755274497745,4.066,4397.6,4395.7,2.901121]
[1755274497746,0.05703075,4395.9,4395.8,2.27489876]
[1755274498351,0.05703075,4395.9,4395.8,4.49269876]